Workbook

Sheet ETA
A1: ¯ = Nei, ® = Ja
N2: Formel, Frekvens
A3: Ingen kjøling VV, f= | C3: TT, feiler, q= | F3: Operatør feiler, q= | L3: Ingen kjøling, F=
A4: =F_0 -> 5.21517483e-05 | C4: =q_TT -> 0.006944444444 | F4: =1-90% -> 0.1 | L4: =fInit*q_TT2*q_Op -> 3.621649187e-08 | N4: =ShowFormula(L4) -> =fInit*q_TT2*q_Op
A5: =ShowFormula(fInit) -> =F_0 | C5: =ShowFormula(q_TT2) -> =q_TT | F5: =ShowFormula(q_Op) -> =1-90%
I6: P3 eller DM feiler, q= | L6: Ingen kjøling, F=
I7: =q_P3+q_DM -> 0.01875 | L7: =fInit*q_TT2*(1-q_Op)*q_SeaWater1 -> 6.111533003e-09 | N7: =ShowFormula(L7) -> =fInit*q_TT2*(1-q_Op)*q_SeaWater1
I8: =ShowFormula(q_SeaWater1) -> =q_P3+q_DM
L9: Forsinket kjøling, F=
L10: =fInit*q_TT2*(1-q_Op)*(1-q_SeaWater1) -> 3.198368938e-07 | M10: (ii) | N10: =ShowFormula(L10) -> =fInit*q_TT2*(1-q_Op)*(1-q_SeaWater1)
I12: P3 eller DM feiler, q= | L12: Ingen kjøling, F=
I13: =q_P3+q_DM -> 0.01875 | L13: =fInit*(1-q_TT2)*q_SeaWater2 -> 9.710546883e-07 | N13: =ShowFormula(L13) -> =fInit*(1-q_TT2)*q_SeaWater2
I14: =ShowFormula(q_SeaWater2) -> =q_P3+q_DM
L15: Sjøvannskjøling, F=
L16: =fInit*(1-q_TT2)*(1-q_SeaWater2) -> 5.081852869e-05 | M16: (i) | N16: =ShowFormula(L16) -> =fInit*(1-q_TT2)*(1-q_SeaWater2)
L19: S ingen kjøling, F=
L20: =L7+L4+L13 -> 1.013382713e-06 | M20: (iii)

Sheet RBD
N10: Enhet | O10: MTTF (år) | P10: MTTF (t) | Q10: MDT (t) | R10: t (t) | S10: navn | T10: p
A11: Lager moduler av hver grein, I og II, med strukturfunksjoner hhv | N11: Pumpe, P1 | O11: 1 | P11: =O11*8760 -> 8760 | Q11: 8 | S11: P_P1 | T11: =(P11)/(P11+Q11) -> 0.9990875912
A12: og | N12: Pumpe, P2 | O12: 1 | P12: =O12*8760 -> 8760 | Q12: 8 | S12: P_P2 | T12: =(P12)/(P12+Q12) -> 0.9990875912
N13: Elektrisk motor, M1 | O13: 2 | P13: 17520 | Q13: 24 | S13: P_M1 | T13: 0.9986320109
A14: For hele strukturen: | N14: Elektrisk motor, M2 | O14: 2 | P14: 17520 | Q14: 24 | S14: P_M2 | T14: 0.9986320109
N15: Varmeveksler, VV | O15: 4 | P15: 35040 | Q15: 48 | S15: P_VV | T15: 0.9986320109
A16: Innsatt: | N16: Strømforsyning, S | O16: 5 | P16: 43800 | Q16: 4 | S16: P_S | T16: 0.9999086841
A18: Stryker potenser:
A22: Systempålitelighet:
A25: Innsatt
A26: h(p)= | B26: =(P_P1*P_M1*P_S+P_P2*P_M2*P_S-P_P1*P_P2*P_M1*P_M2*P_S)*P_VV -> 
A27: 1-h | B27: =1-B26 -> 

Sheet FTA
B3: Q0 - bidrag | C3: Formel | D3: F0 - bidrag | E3: Formel
A4: Cut set(s) with 1 component
A5: {S} | B5: =q_S -> 9.132420091e-05 | C5: =ShowFormula(B5) -> =q_S | D5: =lambda_S -> 2.283105023e-05 | E5: =ShowFormula(D5) -> =lambda_S
A6: {VV} | B6: =q_VV -> 0.001369863014 | C6: =ShowFormula(B6) -> =q_VV | D6: =lambda_VV -> 2.853881279e-05 | E6: =ShowFormula(D6) -> =lambda_VV
A8: Cut set(s) with 2 components
A9: {P1,P2} | B9: =q_P1*q_P2 -> 8.340109672e-07 | C9: =q_P1*q_P2 | D9: =lambda_P1*q_P2+q_P1*lambda_P2 -> 2.085027418e-07 | E9: =lambda_P1*q_P2+q_P1*lambda_P2
A10: {P1,M2} | B10: =q_P1*q_M2 -> 1.251016451e-06 | C10: =q_P1*q_M2 | D10: =lambda_P1*q_M2+q_P1*lambda_M2 -> 2.085027418e-07 | E10: =lambda_P1*q_M2+q_P1*lambda_M2
A11: {M1,P2} | B11: =q_M1*q_P2 -> 1.251016451e-06 | C11: =q_M1*q_P2 | D11: =lambda_M1*q_P2+q_M1*lambda_P2 -> 2.085027418e-07 | E11: =lambda_M1*q_P2+q_M1*lambda_P2
A12: {M1,M2} | B12: =q_M1*q_M2 -> 1.876524676e-06 | C12: =q_M1*q_M2 | D12: =lambda_M1*q_M2+q_M1*lambda_M2 -> 1.563770564e-07 | E12: =lambda_M1*q_M2+q_M1*lambda_M2
A13: Q0= | B13: =SUM(B5:B12) -> 0.001466399783 | C13: F0= | D13: =SUM(D5:D12) -> 5.21517483e-05
A14: Q0× 8760 = timer per år = | B14: =B13*8760 -> 12.8456621 | D14: =D13*8760 -> 0.4568493151 | E14: (Frekvens per år)

Sheet Parametere
A1: Enhet | B1: MTTF (år) | C1: MDT (t) | D1: t (t) | E1: navn | F1: l | G1: navn | H1: q
A2: Pumpe, P1 | B2: 1 | C2: 8 | E2: lambda_P1 | F2: =1/(8760*B2) -> 0.0001141552511 | G2: q_P1 | H2: =C2*F2 -> 0.0009132420091
A3: Pumpe, P2 | B3: 1 | C3: 8 | E3: lambda_P2 | F3: =1/(8760*B3) -> 0.0001141552511 | G3: q_P2 | H3: =C3*F3 -> 0.0009132420091
A4: Elektrisk motor, M1 | B4: 2 | C4: 24 | E4: lambda_M1 | F4: 5.707762557e-05 | G4: q_M1 | H4: 0.001369863014
A5: Elektrisk motor, M2 | B5: 2 | C5: 24 | E5: lambda_M2 | F5: 5.707762557e-05 | G5: q_M2 | H5: 0.001369863014
A6: Varmeveksler, VV | B6: 4 | C6: 48 | E6: lambda_VV | F6: 2.853881279e-05 | G6: q_VV | H6: 0.001369863014
A7: Strømforsyning, S | B7: 5 | C7: 4 | E7: lambda_S | F7: 2.283105023e-05 | G7: q_S | H7: 9.132420091e-05
A8: Pumpe P3 | B8: 5 | D8: 730 | E8: lambda_P3 | F8: 2.283105023e-05 | G8: q_P3 | H8: =D8*F8/2 -> 0.008333333333
A9: Dieselmotor, DM | B9: 4 | D9: 730 | E9: lambda_DM | F9: 2.853881279e-05 | G9: q_DM | H9: =D9*F9/2 -> 0.01041666667
A10: Temperaturmåler, TT | B10: 6 | D10: 730 | E10: lambda_TT | F10: 1.902587519e-05 | G10: q_TT | H10: 0.006944444444

Sheet IoT_GET
A1: Name | B1: Value | C1: Description
A2: sjonFolder | B2: https://folk.ntnu.no/jvatn/eLearning/DT/ | C2: Usually, do not update
A3: sjonName | B3: sJonTest | C3: Name of SJON file to use, without extension
A4: Par1_ | B4: 2
A5: Par2_ | B5: 5
